bitfinex-derivatives/quotes_BTCF0:USTF0_20250921
["timestamp","ask_amount","ask_price","bid_price","bid_amount"]
[1758496573802,2.14353674,115380.0,115370.0,0.0044]
[1758496575592,1.34869674,115380.0,115370.0,0.0044]
[1758496575798,2.14353674,115380.0,115370.0,0.0044]
[1758496576603,2.14335676,115380.0,115370.0,0.0044]
[1758496577496,2.28725676,115380.0,115370.0,0.0044]
[1758496577703,2.14335676,115380.0,115370.0,0.0044]
[1758496579501,1.89335676,115380.0,115370.0,7e-05]
[1758496579693,1.89335676,115380.0,115360.0,0.0001]
[1758496579694,0.35741078,115370.0,115360.0,0.0001]
[1758496579893,0.04993367,115360.0,115350.0,0.0008]
[1758496580098,0.00792,115350.0,115330.0,0.1872294]
[1758496580300,0.00792,115350.0,115330.0,0.1225796]
[1758496580301,1.2461202,115340.0,115330.0,0.1225796]
[1758496580495,1.0317851,115340.0,115330.0,0.1225796]
[1758496581603,0.2369851,115340.0,115330.0,0.1225796]
[1758496581803,1.2461202,115340.0,115330.0,0.1225796]
[1758496581999,1.2461202,115340.0,115330.0,0.1217796]
[1758496582303,1.2491202,115340.0,115330.0,0.1267796]
[1758496582802,1.2501202,115340.0,115330.0,0.1291796]
[1758496583002,1.31884952,115340.0,115330.0,0.1291796]
[1758496583505,1.32747897,115340.0,115330.0,0.1291796]
[1758496584997,1.32747897,115340.0,115330.0,0.1152496]
[1758496584998,1.70118897,115340.0,115330.0,0.1152496]
[1758496585197,0.90638897,115340.0,115330.0,0.1148496]
[1758496585402,1.70118897,115340.0,115330.0,0.1148496]
[1758496586102,1.70118897,115340.0,115330.0,0.1152496]
[1758496587406,1.72145283,115340.0,115330.0,0.1152496]
[1758496587703,0.92665283,115340.0,115330.0,0.1152496]
[1758496588005,1.72145283,115340.0,115330.0,0.1152496]
[1758496590609,0.48507263,115340.0,115330.0,0.1286096]
[1758496590806,1.70854283,115340.0,115330.0,0.1286096]
[1758496595607,0.91374283,115340.0,115330.0,0.1286096]
[1758496595910,1.70850283,115340.0,115330.0,0.1286096]
[1758496599802,1.72141283,115340.0,115330.0,0.1286096]
[1758496600004,1.72141283,115340.0,115330.0,0.1152496]
[1758496600698,0.92665283,115340.0,115330.0,0.1152496]
[1758496600905,1.72137283,115340.0,115330.0,0.1286096]
[1758496602513,1.70110897,115340.0,115330.0,0.1286096]
[1758496603011,1.68819897,115340.0,115330.0,0.1286096]
[1758496606311,1.70110897,115340.0,115330.0,0.1286096]
[1758496606508,1.70110897,115340.0,115330.0,0.1152496]
[1758496606910,1.70110897,115340.0,115330.0,0.0074]
[1758496608013,1.70110897,115340.0,115330.0,0.007]
[1758496608212,1.70110897,115340.0,115330.0,0.0074]
[1758496611418,1.70110897,115340.0,115330.0,0.0940553]
[1758496611419,0.90638897,115340.0,115330.0,0.0940553]
[1758496611716,1.70102897,115340.0,115330.0,0.0940553]
[1758496612117,0.47771877,115340.0,115330.0,0.1162253]
[1758496612319,0.90638897,115340.0,115330.0,0.1162253]
[1758496612518,1.70102897,115340.0,115330.0,0.1162253]
[1758496620325,0.90638897,115340.0,115330.0,0.1162253]
[1758496620527,1.70098897,115340.0,115330.0,0.1162253]
[1758496622430,1.70098897,115340.0,115330.0,0.0940553]
[1758496622628,1.48677314,115340.0,115330.0,0.0940553]
[1758496623335,1.48677314,115340.0,115330.0,0.1151953]
[1758496625841,1.48677314,115340.0,115330.0,0.0940553]
[1758496626131,0.46480877,115340.0,115330.0,0.1288253]
[1758496626533,0.10400877,115340.0,115330.0,0.3788253]
[1758496626934,0.08135877,115340.0,115330.0,0.59327967]
[1758496627437,0.08135877,115340.0,115330.0,2.09327967]
[1758496627834,0.08135877,115340.0,115330.0,1.8788253]
[1758496628032,0.29581314,115340.0,115330.0,1.8788253]
[1758496628334,0.08135877,115340.0,115330.0,1.8788253]
[1758496628537,0.29581314,115340.0,115330.0,1.8788253]
[1758496640636,0.08135877,115340.0,115330.0,1.8788253]
[1758496640836,0.29581314,115340.0,115330.0,1.8788253]
[1758496645042,0.65661314,115340.0,115330.0,1.8788253]
[1758496645541,0.65661314,115340.0,115330.0,1.6288253]
[1758496645740,0.44215877,115340.0,115330.0,1.6288253]
[1758496645942,0.65661314,115340.0,115330.0,1.6288253]
[1758496648246,0.68073954,115340.0,115330.0,1.6288253]
[1758496650153,1.47489954,115340.0,115330.0,1.6284253]
[1758496650349,1.47489954,115340.0,115330.0,1.6288253]
[1758496650548,1.49592954,115340.0,115330.0,0.1288253]
[1758496650852,0.67764314,115340.0,115330.0,0.1288253]
[1758496651041,0.67764314,115340.0,115330.0,1.6288253]
[1758496651042,1.47176314,115340.0,115330.0,1.6288253]
[1758496653351,1.47176314,115340.0,115330.0,0.1288253]
[1758496653747,1.47176314,115340.0,115330.0,1.6288253]
[1758496656551,0.67764314,115340.0,115330.0,1.6288253]
[1758496656753,1.47172314,115340.0,115330.0,1.6288253]
[1758496658752,0.67764314,115340.0,115330.0,1.6288253]
[1758496659054,1.47168314,115340.0,115330.0,1.6288253]
[1758496660154,1.47164314,115340.0,115330.0,1.6288253]
[1758496661058,1.48442314,115340.0,115330.0,1.6284253]
[1758496661261,1.48442314,115340.0,115330.0,1.6288253]
[1758496661758,1.48442314,115340.0,115330.0,0.1288253]
[1758496663362,0.69042314,115340.0,115330.0,0.1288253]
[1758496663562,1.48442314,115340.0,115330.0,0.1288253]
[1758496664559,1.48442314,115340.0,115330.0,0.02854]
[1758496665868,1.48442314,115340.0,115330.0,0.1151953]
[1758496666469,1.48434314,115340.0,115330.0,0.1151953]
[1758496670572,1.26988877,115340.0,115330.0,0.1151953]
[1758496670773,1.48434314,115340.0,115330.0,0.1151953]
[1758496670967,1.48434314,115340.0,115330.0,0.1289653]
[1758496675069,1.48418314,115340.0,115330.0,0.1289653]
[1758496675791,1.48418314,115340.0,115330.0,0.02854]
[1758496676075,1.48418314,115340.0,115330.0,0.0074]
[1758496676376,1.75831974,115340.0,115330.0,0.0074]
[1758496676872,1.75831974,115340.0,115330.0,0.007]
[1758496677174,1.75831974,115340.0,115330.0,0.0074]
[1758496680472,2.42187411,115340.0,115330.0,0.0074]
[1758496680974,2.45297472,115340.0,115330.0,0.0074]
[1758496681168,2.45297472,115340.0,115330.0,0.007]
[1758496681364,2.42187411,115340.0,115330.0,0.0074]
[1758496681772,2.42179411,115340.0,115330.0,0.0074]
[1758496682076,2.42379411,115340.0,115330.0,0.006]
[1758496682276,2.43079411,115340.0,115330.0,0.0044]
[1758496682880,1.63711411,115340.0,115330.0,0.0044]
[1758496683176,2.43075411,115340.0,115330.0,0.0044]
[1758496684480,2.43079411,115340.0,115330.0,0.0044]
[1758496684778,2.64550981,115340.0,115330.0,0.0044]
[1758496685981,1.85182981,115340.0,115330.0,0.0044]
[1758496686177,2.64546981,115340.0,115330.0,0.0044]
[1758496687082,0.00879,115310.0,115300.0,1.51293]
[1758496687382,1.59231296,115310.0,115300.0,1.51293]
[1758496688381,1.59531296,115310.0,115300.0,1.51993]
[1758496688577,1.61744296,115310.0,115300.0,0.01993]
[1758496688784,1.61744296,115310.0,115300.0,0.04242]
[1758496688974,1.61744296,115310.0,115300.0,0.1290979]
[1758496689174,1.61744296,115310.0,115300.0,0.02949]
[1758496689175,0.82380296,115310.0,115300.0,0.02949]
[1758496689376,1.61740296,115310.0,115300.0,0.02949]
[1758496689574,1.61740296,115310.0,115300.0,0.02909]
[1758496689881,1.61840296,115310.0,115300.0,0.0094]
[1758496690983,1.18932,115310.0,115300.0,0.0094]
[1758496691285,1.61840296,115310.0,115300.0,0.0094]
[1758496692679,1.61840296,115310.0,115300.0,0.009]
[1758496692878,1.61840296,115310.0,115300.0,0.0094]
[1758496693587,0.82480296,115310.0,115300.0,0.0094]
[1758496693785,1.61840296,115310.0,115300.0,0.0094]
[1758496694482,1.83294444,115310.0,115300.0,0.0094]
[1758496694785,1.61840296,115310.0,115300.0,0.0094]
[1758496695187,1.03934444,115310.0,115300.0,0.0094]
[1758496695387,1.85697299,115310.0,115300.0,0.0094]
[1758496696086,1.06341299,115310.0,115300.0,0.0094]
[1758496696290,1.85697299,115310.0,115300.0,0.0094]
[1758496696879,1.64243151,115310.0,115300.0,0.0094]
[1758496697579,1.85697299,115310.0,115300.0,0.0094]
[1758496702090,2.00087299,115310.0,115300.0,0.0094]
[1758496702890,2.00087299,115310.0,115300.0,0.009]
[1758496703391,2.00087299,115310.0,115300.0,0.0094]
[1758496706997,1.20731299,115310.0,115300.0,0.0094]
[1758496707295,2.00075299,115310.0,115300.0,0.0094]
[1758496713301,2.0318536,115310.0,115300.0,0.0094]
[1758496714405,1.2384136,115310.0,115300.0,0.0094]
[1758496714698,2.0317336,115310.0,115300.0,0.0094]
[1758496721206,2.07838451,115310.0,115300.0,0.0094]
[1758496722406,2.07826451,115310.0,115300.0,0.0094]
[1758496725612,2.07818451,115310.0,115300.0,0.0094]
[1758496726812,2.0315336,115310.0,115300.0,0.0094]
[1758496728807,0.0359,115300.0,115290.0,0.0001]
[1758496729014,1.39160809,115300.0,115280.0,0.014]
[1758496729313,1.60604296,115290.0,115280.0,0.03675]
[1758496729514,1.65006765,115290.0,115280.0,0.28665]
[1758496729715,1.65006765,115290.0,115280.0,0.03665]
[1758496730215,1.63906765,115290.0,115280.0,0.03665]
[1758496730513,1.6149991,115290.0,115280.0,0.03665]
[1758496731213,1.64316052,115290.0,115280.0,0.04765]
[1758496731413,1.6189991,115290.0,115280.0,0.04765]
[1758496731917,1.6199991,115290.0,115280.0,0.04765]
[1758496732417,1.69044339,115290.0,115280.0,0.04765]
[1758496737423,1.26136043,115290.0,115280.0,0.04765]
[1758496737619,1.69044339,115290.0,115280.0,0.04765]
[1758496738918,1.69720339,115290.0,115280.0,0.03429]
[1758496740419,0.46832043,115290.0,115280.0,0.04744]
[1758496740722,1.69024339,115290.0,115280.0,0.04744]
[1758496741121,0.89740339,115290.0,115280.0,0.04744]
[1758496741317,1.69024339,115290.0,115280.0,0.04744]
[1758496744330,0.89740339,115290.0,115280.0,0.1341338]
[1758496744534,1.69020339,115290.0,115280.0,0.1341338]
[1758496744836,1.69020339,115290.0,115280.0,0.04744]
[1758496745339,1.26112043,115290.0,115280.0,0.04744]
[1758496745638,0.68286191,115290.0,115280.0,0.04744]
[1758496745837,1.47566191,115290.0,115280.0,0.04744]
[1758496746039,1.69020339,115290.0,115280.0,0.04744]
[1758496746539,1.47574343,115290.0,115280.0,0.04744]
[1758496747735,1.47570343,115290.0,115280.0,0.1341338]
[1758496748641,1.26108043,115290.0,115280.0,0.1341338]
[1758496748842,1.47570343,115290.0,115280.0,0.1341338]
[1758496752946,1.49986688,115290.0,115280.0,0.1341338]
[1758496753440,1.49986688,115290.0,115280.0,0.04744]
[1758496753634,1.71448988,115290.0,115280.0,0.04744]
[1758496753839,1.71448988,115290.0,115280.0,0.1341338]
[1758496756447,1.71448988,115290.0,115280.0,0.04744]
[1758496756647,1.69708643,115290.0,115280.0,0.03429]
[1758496757443,1.69708643,115290.0,115280.0,0.0118]
[1758496759141,1.69708643,115290.0,115280.0,0.03422]
[1758496759848,0.92848555,115290.0,115280.0,0.03422]
[1758496760049,1.72112555,115290.0,115280.0,0.03422]
[1758496760951,1.72112555,115290.0,115280.0,0.0118]
[1758496763255,1.72112555,115290.0,115280.0,0.03422]
[1758496763550,1.97112555,115290.0,115280.0,0.0118]
[1758496765158,0.74923955,115290.0,115280.0,0.0118]
[1758496765454,1.97108555,115290.0,115280.0,0.03461]
[1758496768548,1.97104555,115290.0,115280.0,0.03461]
[1758496770558,1.17848555,115290.0,115280.0,0.03461]
[1758496770861,1.97100555,115290.0,115280.0,0.03461]
[1758496773552,1.17848555,115290.0,115280.0,0.03461]
[1758496773752,1.71424555,115290.0,115280.0,0.1351239]
[1758496774663,1.71424555,115290.0,115280.0,0.04843]
[1758496776463,1.71424555,115290.0,115280.0,0.1351239]
[1758496776763,1.69004643,115290.0,115280.0,0.1351239]
[1758496777259,0.89756643,115290.0,115280.0,0.1351239]
[1758496777463,1.69004643,115290.0,115280.0,0.1351239]
[1758496778260,1.69004643,115290.0,115280.0,0.04843]
[1758496780862,1.69680643,115290.0,115280.0,0.04843]
[1758496782166,1.69680643,115290.0,115280.0,0.1351237]
[1758496782367,1.69004643,115290.0,115280.0,0.1351237]
[1758496784765,1.69004643,115290.0,115280.0,0.04843]
[1758496784966,1.71454832,115290.0,115280.0,0.04843]
[1758496786368,0.92206832,115290.0,115280.0,0.04843]
[1758496786567,1.71446832,115290.0,115280.0,0.04843]
[1758496790672,1.72546832,115290.0,115280.0,0.04843]
[1758496791771,1.73222832,115290.0,115280.0,0.04843]
[1758496792769,0.50382232,115290.0,115280.0,0.04843]
[1758496792969,1.51080532,115290.0,115280.0,0.04843]
[1758496793184,1.72542832,115290.0,115280.0,0.04843]
[1758496794877,1.73218832,115290.0,115280.0,0.03461]
[1758496795977,0.93982832,115290.0,115280.0,0.03461]
[1758496796166,1.73218832,115290.0,115280.0,0.03461]
[1758496799579,1.70768643,115290.0,115280.0,0.03461]
[1758496799772,1.73227383,115290.0,115280.0,0.03461]
[1758496801573,1.73223383,115290.0,115280.0,0.03461]
[1758496801768,0.93315383,115290.0,115280.0,0.04773]
[1758496801978,1.72547383,115290.0,115280.0,0.04773]
[1758496802167,0.93315383,115290.0,115280.0,0.04773]
[1758496802371,1.72547383,115290.0,115280.0,0.04773]
[1758496803673,1.72547383,115290.0,115280.0,0.03461]
[1758496803674,1.73223383,115290.0,115280.0,0.03461]
[1758496805768,1.72547383,115290.0,115280.0,0.04773]
[1758496806278,0.93315383,115290.0,115280.0,0.04773]
[1758496806576,1.72552905,115290.0,115280.0,0.04773]
[1758496818379,0.93320905,115290.0,115280.0,0.04773]
[1758496818585,1.72548905,115290.0,115280.0,0.04773]
[1758496818790,1.73224905,115290.0,115280.0,0.03315]
[1758496823786,1.73224905,115290.0,115280.0,0.04662]
[1758496824494,1.73224905,115290.0,115280.0,0.03315]
[1758496824694,1.30294783,115290.0,115280.0,0.03315]
[1758496824878,1.73224905,115290.0,115280.0,0.03315]
[1758496827091,1.73276905,115290.0,115280.0,0.03315]
[1758496827985,1.73275889,115290.0,115280.0,0.03315]
[1758496839010,2.09355889,115290.0,115280.0,0.03315]
[1758496844612,2.09355889,115290.0,115280.0,0.0118]
[1758496844812,2.09355889,115290.0,115280.0,0.0346]
[1758496848310,0.87145767,115290.0,115280.0,0.0346]
[1758496848613,2.09303889,115290.0,115280.0,0.0346]
[1758496850313,1.30075889,115290.0,115280.0,0.0346]
[1758496850511,2.09303889,115290.0,115280.0,0.0346]
[1758496850711,2.07308275,115290.0,115280.0,0.0346]
[1758496852019,2.07308275,115290.0,115280.0,0.0118]
[1758496852613,2.07308275,115290.0,115280.0,0.0346]
[1758496855023,1.28080275,115290.0,115280.0,0.0346]
[1758496855426,2.07304275,115290.0,115280.0,0.04761]
[1758496855721,2.07304275,115290.0,115280.0,0.0346]
[1758496856120,1.28080275,115290.0,115280.0,0.0346]
[1758496856425,2.07304275,115290.0,115280.0,0.0346]
[1758496857320,1.28080275,115290.0,115280.0,0.0346]
[1758496857528,2.07304275,115290.0,115280.0,0.0346]
[1758496859631,1.28080275,115290.0,115280.0,0.0346]
[1758496859828,2.07304275,115290.0,115280.0,0.0346]
[1758496862431,1.28080275,115290.0,115280.0,0.0346]
[1758496862632,1.28080275,115290.0,115280.0,0.04761]
[1758496862826,0.84474153,115290.0,115280.0,0.81360412]
[1758496863027,1.8270549,115290.0,115280.0,0.81360412]
[1758496863529,0.24277061,115290.0,115280.0,0.81360412]
[1758496863836,1.03501061,115290.0,115280.0,0.59895351]
[1758496864235,1.03501061,115290.0,115280.0,0.3843029]
[1758496864439,1.03501061,115290.0,115280.0,0.59895351]
[1758496866434,1.03501061,115290.0,115280.0,0.3843029]
[1758496866637,1.03496083,115290.0,115280.0,0.3843029]
[1758496866833,1.10595991,115290.0,115280.0,0.3843029]
[1758496867137,1.68136074,115290.0,115280.0,0.04681]
[1758496867437,1.69414074,115290.0,115280.0,0.0342]
[1758496867625,1.69414074,115290.0,115280.0,0.0338]
[1758496867830,1.47953991,115290.0,115280.0,0.0342]
[1758496868435,1.47953991,115290.0,115280.0,0.04721]
[1758496871038,1.46675991,115290.0,115280.0,0.04721]
[1758496872340,1.25215908,115290.0,115280.0,0.1339029]
[1758496872544,1.46667991,115290.0,115280.0,0.1339029]
[1758496875745,0.67451991,115290.0,115280.0,0.1339029]
[1758496875938,1.46667991,115290.0,115280.0,0.1339029]
[1758496876539,1.46663991,115290.0,115280.0,0.1339029]
[1758496882352,0.67451991,115290.0,115280.0,0.1339029]
[1758496882547,1.46659991,115290.0,115280.0,0.1339029]
[1758496883552,0.67451991,115290.0,115280.0,0.1339029]
[1758496883742,1.46659991,115290.0,115280.0,0.1339029]
[1758496885247,0.67451991,115290.0,115280.0,0.1339029]
[1758496885451,1.46659991,115290.0,115280.0,0.1339029]
[1758496889752,0.45991908,115290.0,115280.0,0.1339029]
[1758496889948,1.25195908,115290.0,115280.0,0.1339029]
[1758496890552,1.46655991,115290.0,115280.0,0.1339029]
[1758496893253,1.25195908,115290.0,115280.0,0.1339029]
[1758496893554,1.46655991,115290.0,115280.0,0.1339029]
[1758496893853,1.46655991,115290.0,115280.0,1.6339029]
[1758496902858,0.67451991,115290.0,115280.0,1.6339029]
[1758496903060,1.46647991,115290.0,115280.0,1.6339029]
[1758496906766,1.46647991,115290.0,115280.0,1.54721]
[1758496907264,1.46647991,115290.0,115280.0,1.6339029]
[1758496907765,1.46647991,115290.0,115280.0,1.54721]
[1758496909457,1.46647991,115290.0,115280.0,1.6339029]
[1758496913466,1.46635991,115290.0,115280.0,1.6339029]
[1758496917162,1.39536083,115290.0,115280.0,1.6339029]
[1758496917366,0.60352083,115290.0,115280.0,1.6339029]
[1758496917567,1.39532083,115290.0,115280.0,1.6339029]
[1758496917767,0.60352083,115290.0,115280.0,1.6339029]
[1758496918266,1.39532083,115290.0,115280.0,1.6339029]
[1758496920570,0.38892,115290.0,115280.0,1.84850373]
[1758496920771,1.39532083,115290.0,115280.0,1.6339029]
[1758496922671,0.60352083,115290.0,115280.0,1.6339029]
[1758496922872,1.39532083,115290.0,115280.0,1.6339029]
[1758496923374,1.03448083,115290.0,115280.0,1.6339029]
[1758496927577,1.03448083,115290.0,115280.0,1.84850373]
[1758496927578,0.02812,115290.0,115280.0,1.84850373]
[1758496927880,0.81984,115290.0,115280.0,1.84850373]
[1758496928578,0.005,115290.0,115280.0,2.06301376]
[1758496928784,0.005,115290.0,115280.0,2.42381376]
[1758496929079,0.21955543,115290.0,115280.0,2.42381376]
[1758496930068,0.005,115290.0,115280.0,2.42381376]
[1758496930681,0.005,115290.0,115280.0,3.21553376]
[1758496932076,0.0049,115290.0,115280.0,3.46553376]
[1758496933076,0.0049,115290.0,115280.0,2.67381376]
[1758496933280,0.0049,115290.0,115280.0,3.46545376]
[1758496933681,0.0049,115290.0,115280.0,3.0363429]
[1758496933886,0.0049,115290.0,115280.0,3.46545376]
[1758496937085,0.0049,115290.0,115280.0,3.46541376]
[1758496937586,0.0049,115290.0,115280.0,2.67381376]
[1758496937784,0.0049,115290.0,115280.0,3.46541376]
[1758496938487,0.0049,115290.0,115280.0,2.67381376]
[1758496938686,0.0049,115290.0,115280.0,3.46537376]
[1758496942691,0.23560543,115310.0,115300.0,0.0995978]
[1758496942990,0.23560543,115310.0,115300.0,1.12871323]
[1758496944896,0.23560543,115310.0,115300.0,1.13171323]
[1758496945100,0.24460543,115310.0,115300.0,1.13171323]
[1758496945301,0.03005,115310.0,115300.0,1.13171323]
[1758496945597,0.24560543,115310.0,115300.0,1.13171323]
[1758496946596,0.03105,115310.0,115300.0,0.9171578]
[1758496946799,0.24560543,115310.0,115300.0,1.13171323]
[1758496948105,0.03105,115310.0,115300.0,1.13171323]
[1758496948294,0.24560543,115310.0,115300.0,1.13171323]
[1758496948800,0.24560543,115310.0,115300.0,1.13163323]
[1758496949397,0.03105,115310.0,115300.0,1.13163323]
[1758496949696,0.24560543,115310.0,115300.0,1.13163323]
[1758496949897,0.03105,115310.0,115300.0,0.9170778]
[1758496950097,0.24560543,115310.0,115300.0,0.1256378]
[1758496950293,0.24560543,115310.0,115300.0,0.34019323]
[1758496954299,0.03105,115310.0,115300.0,0.1256378]
[1758496954499,0.24560543,115310.0,115300.0,0.34019323]
[1758496960199,0.03105,115310.0,115300.0,0.34019323]
[1758496960498,0.24560543,115310.0,115300.0,0.34019323]
[1758496964203,0.60640543,115310.0,115300.0,0.34019323]
[1758496964408,0.60640543,115310.0,115300.0,0.1256375]
[1758496964610,0.39185,115310.0,115300.0,0.34019293]
[1758496964905,0.24560543,115310.0,115300.0,0.34019293]
[1758496965410,0.24560543,115310.0,115300.0,0.1256375]
[1758496965709,0.24560543,115310.0,115300.0,0.34019293]
[1758496967209,0.24560543,115310.0,115300.0,0.1256375]
[1758496967410,0.24560543,115310.0,115300.0,0.34019293]
[1758496968310,0.03105,115310.0,115300.0,0.34019293]
[1758496968509,0.24560543,115310.0,115300.0,0.34019293]
[1758496979912,0.03105,115310.0,115300.0,0.34019293]
[1758496980113,0.24560543,115310.0,115300.0,0.34019293]
[1758496981514,0.24560543,115310.0,115300.0,0.1256375]
[1758496981710,0.24560543,115310.0,115300.0,0.34019293]
[1758496986519,0.03105,115310.0,115300.0,0.34019293]
[1758496986719,0.24560543,115310.0,115300.0,0.34019293]
[1758496987212,0.03105,115310.0,115300.0,0.34019293]
[1758496987416,0.24560543,115310.0,115300.0,0.34019293]
[1758496987618,0.03105,115310.0,115300.0,0.34019293]
[1758496987812,0.24560543,115310.0,115300.0,0.34019293]
[1758496988918,0.24560543,115310.0,115300.0,0.1256375]
[1758496989219,0.24560543,115310.0,115300.0,0.34019293]
[1758496990514,0.24556301,115310.0,115300.0,0.1256375]
[1758496999027,0.24556301,115310.0,115300.0,1.6256375]
[1758497003729,0.88354439,115310.0,115300.0,1.52604]
[1758497003920,0.88354439,115310.0,115300.0,1.6127177]
[1758497004122,0.88354439,115310.0,115300.0,1.52604]
[1758497004325,0.88354439,115310.0,115300.0,1.52644]
[1758497004526,0.88354439,115310.0,115300.0,1.52604]
[1758497004726,1.67446439,115310.0,115300.0,1.52644]
[1758497008436,0.88354439,115310.0,115300.0,1.52644]
[1758497008941,1.67442439,115310.0,115300.0,1.52644]
[1758497009342,0.66227138,115310.0,115300.0,1.6262177]
[1758497009538,1.66766439,115310.0,115300.0,1.6262177]
[1758497013741,0.87678439,115310.0,115300.0,1.6262177]
[1758497013942,1.66762439,115310.0,115300.0,1.6262177]
[1758497016145,0.87678439,115310.0,115300.0,1.6262177]
[1758497016338,1.66762439,115310.0,115300.0,1.6262177]
[1758497018048,0.87678439,115310.0,115300.0,1.6262177]
[1758497018253,1.66762439,115310.0,115300.0,1.6262177]
[1758497018851,0.87678439,115310.0,115300.0,1.6262177]
[1758497019247,0.62678439,115310.0,115300.0,1.6262177]
[1758497019449,1.41758439,115310.0,115300.0,1.6262177]
[1758497019746,0.62678439,115310.0,115300.0,1.6262177]
[1758497019952,1.41758439,115310.0,115300.0,1.6262177]
[1758497020548,0.62678439,115310.0,115300.0,1.6262177]
[1758497025657,0.26598439,115310.0,115300.0,1.6262177]
[1758497026855,0.27274439,115310.0,115300.0,1.6131177]
[1758497027256,0.26598439,115310.0,115300.0,1.6262177]
[1758497033165,1.05666439,115310.0,115300.0,1.6262177]
[1758497037772,0.26598439,115310.0,115300.0,1.6262177]
[1758497037973,1.05662439,115310.0,115300.0,1.6262177]
[1758497039074,0.84211138,115310.0,115300.0,1.6262177]
[1758497039269,1.05658439,115310.0,115300.0,1.6262177]
[1758497042274,0.05147138,115310.0,115300.0,1.6262177]
[1758497042577,0.84203138,115310.0,115300.0,1.6262177]
[1758497042775,1.05654439,115310.0,115300.0,1.6262177]
[1758497044978,0.26598439,115310.0,115300.0,1.6262177]
[1758497045180,1.05654439,115310.0,115300.0,1.6262177]
[1758497045574,0.26598439,115310.0,115300.0,1.6262177]
[1758497045780,0.01,115310.0,115300.0,2.09073071]
[1758497045981,0.01,115310.0,115300.0,2.45153071]
[1758497046481,0.01,115310.0,115300.0,3.24205071]
[1758497046881,0.01,115310.0,115300.0,3.0275377]
[1758497049081,0.01,115310.0,115300.0,2.2370177]
[1758497049383,0.01,115310.0,115300.0,3.24201071]
[1758497050882,0.00831695,115310.0,115300.0,3.24201071]
[1758497051082,0.00862945,115340.0,115330.0,0.1222652]
[1758497051278,0.02268,115350.0,115340.0,0.0866438]
[1758497051582,0.38348,115350.0,115340.0,0.1222538]
[1758497052077,0.84799301,115350.0,115340.0,0.1222538]
[1758497052383,0.02268,115350.0,115340.0,0.33676681]
[1758497052684,0.23702998,115350.0,115340.0,0.33660378]
[1758497053179,0.23702998,115350.0,115340.0,0.55095376]
[1758497053383,0.23702998,115350.0,115340.0,0.33660378]
[1758497053580,0.03131119,115350.0,115340.0,0.33660378]
[1758497053783,0.26366117,115350.0,115340.0,0.34060378]
[1758497054185,0.26966117,115350.0,115340.0,0.34060378]
[1758497054877,0.05531119,115350.0,115340.0,0.34060378]
[1758497055080,0.26566117,115350.0,115340.0,0.34060378]
[1758497055379,0.05131119,115350.0,115340.0,0.34060378]
[1758497055583,0.26566117,115350.0,115340.0,0.34060378]
[1758497055780,0.05131119,115350.0,115340.0,0.34060378]
[1758497055982,0.05031119,115350.0,115340.0,0.34060378]
[1758497056578,0.05031119,115350.0,115340.0,0.55495376]
[1758497057588,0.019,115350.0,115340.0,0.91575376]
[1758497062985,0.019,115350.0,115340.0,1.70591376]
[1758497065789,0.019,115350.0,115340.0,1.70587376]
[1758497065993,0.019,115350.0,115340.0,0.91575376]
[1758497066593,0.019,115350.0,115340.0,1.70583376]
[1758497066994,0.019,115350.0,115340.0,0.91575376]
[1758497067194,0.019,115350.0,115340.0,1.70583376]
[1758497068099,0.019,115350.0,115340.0,0.91575376]
[1758497068697,0.019,115350.0,115340.0,1.70579376]
[1758497070996,0.019,115350.0,115340.0,0.91575376]
[1758497071391,0.019,115350.0,115340.0,1.70575376]
[1758497072589,0.019,115350.0,115340.0,0.91575376]
[1758497072986,0.019,115350.0,115340.0,1.70575376]
[1758497073493,0.019,115350.0,115340.0,0.91575376]
[1758497073699,0.019,115350.0,115340.0,1.70571376]
[1758497077711,0.019,115350.0,115340.0,1.70567376]
[1758497079401,0.04023,115350.0,115340.0,0.4870538]
[1758497079605,0.04023,115350.0,115340.0,1.70567376]
[1758497079906,0.04023,115350.0,115340.0,1.70563376]
[1758497080209,0.019,115350.0,115340.0,1.70563376]
[1758497082809,0.019,115350.0,115340.0,1.2769338]
[1758497083009,0.019,115350.0,115340.0,1.70563376]
[1758497095015,0.019,115350.0,115340.0,1.91998374]
[1758497095218,0.0091,115350.0,115340.0,1.91998374]
[1758497096220,0.0041,115350.0,115340.0,1.91998374]
[1758497096517,0.0071,115350.0,115340.0,1.91998374]
[1758497096718,0.003,115350.0,115340.0,1.91598374]
[1758497096926,0.014,115350.0,115340.0,1.91998374]
[1758497099908,0.014,115350.0,115340.0,1.91986374]
[1758497100110,0.014,115350.0,115340.0,1.9285549]
[1758497101520,0.014,115350.0,115340.0,2.1785549]
[1758497101720,1e-07,115350.0,115340.0,2.1785549]
[1758497101929,1e-07,115350.0,115340.0,2.1785149]
[1758497102115,0.0001,115370.0,115360.0,0.03481]
[1758497102416,0.3608,115380.0,115360.0,0.03481]
[1758497102417,0.38311,115380.0,115370.0,0.121435]
[1758497102715,0.38301,115380.0,115370.0,0.33578498]
[1758497103818,0.39155161,115380.0,115370.0,0.33578498]
[1758497104115,0.25210159,115380.0,115370.0,0.33778498]
[1758497104316,0.28775161,115380.0,115370.0,0.69858498]
[1758497104528,0.01554161,115380.0,115370.0,0.91293496]
[1758497104714,0.01554161,115380.0,115370.0,0.69858498]
[1758497104914,0.02194161,115380.0,115370.0,0.91393496]
[1758497105221,0.0134,115380.0,115370.0,1.70365496]
[1758497106319,0.0074,115380.0,115370.0,1.70265496]
[1758497106517,0.0074,115380.0,115370.0,1.70365496]
[1758497106714,0.0074,115380.0,115370.0,1.70361496]
[1758497107116,0.0074,115380.0,115370.0,0.91393496]
[1758497107316,0.0074,115380.0,115370.0,1.70357496]
[1758497109613,0.0074,115380.0,115370.0,3.20357496]
[1758497109820,0.0074,115380.0,115370.0,2.41393496]
[1758497110019,0.0074,115380.0,115370.0,3.20353496]
[1758497111821,0.0074,115380.0,115370.0,2.41393496]
[1758497112031,0.0074,115380.0,115370.0,3.20353496]
[1758497114527,0.0074,115380.0,115370.0,2.98900086]
[1758497118524,0.0074,115380.0,115370.0,3.34980086]
[1758497120218,0.0074,115380.0,115370.0,3.135635]
[1758497120424,0.0074,115380.0,115370.0,3.56396672]
[1758497126129,0.0008,115400.0,115390.0,0.1215999]
[1758497126334,0.0008,115400.0,115390.0,1.48596576]
[1758497126632,0.38281,115410.0,115400.0,0.1215924]
[1758497126828,0.38281,115410.0,115400.0,0.33575826]
[1758497127830,0.39141974,115410.0,115400.0,0.33575826]
[1758497128134,0.39941974,115410.0,115400.0,0.33675826]
[1758497128336,0.41341974,115410.0,115400.0,0.33975826]